Department Family,Entity,Date Paid,Expense Type,Expense Area,Supplier Name,Transaction Reference,Analysed Gross
Department of Health,Chelsea & Westminster NHS Foundation Trust,26/03/2018,Nhs Blood Products,Pathology And Blood,Nhs Blood Transplant,1179711,"73,459.08"
Department of Health,Chelsea & Westminster NHS Foundation Trust,27/03/2018,JAC Pharmacy App Software Maintenance,Main Pharmacy,Jac Computer Services Ltd,1174261,"57,478.80"
Department of Health,Chelsea & Westminster NHS Foundation Trust,26/03/2018,Office Equipment - Hire,I.C.T,Xerox Uk Ltd,1169639,"25,016.53"
Department of Health,Chelsea & Westminster NHS Foundation Trust,20/03/2018,Typing & Transcription Services,Paediatric Secretaries,Scribetech Uk Ltd,1174266,"25,648.33"
Department of Health,Chelsea & Westminster NHS Foundation Trust,06/03/2018,Drug Purchases,Pharmacy  (Chelsea site),Bayer Plc,1166953,"26,220.00"
Department of Health,Chelsea & Westminster NHS Foundation Trust,01/03/2018,Nw London Pathology Contract,Pathology And Blood,North West London Pathology,1160307,"1,741,561.00"
Department of Health,Chelsea & Westminster NHS Foundation Trust,06/03/2018,Drug Purchases,Pharmacy  (Chelsea site),Gilead Sciences Ltd,1166125,"26,220.00"
Department of Health,Chelsea & Westminster NHS Foundation Trust,26/03/2018,Recharges � Pay and non-pay costs,Pain,Imperial College London,1088494,"26,322.62"
Department of Health,Chelsea & Westminster NHS Foundation Trust,26/03/2018,Drug Purchases,Pharmacy  (Chelsea site),Boots Uk Ltd,1170641,"1,731,257.52"
Department of Health,Chelsea & Westminster NHS Foundation Trust,26/03/2018,Recharges � Pay and non-pay costs,Pain,Imperial College London,1093082,"26,840.22"
Department of Health,Chelsea & Westminster NHS Foundation Trust,26/03/2018,Intangible Licences Cost,Procurement,Ghx Uk Ltd,1178263,"27,121.20"
Department of Health,Chelsea & Westminster NHS Foundation Trust,26/03/2018,Drug Purchases,Pharmacy  (Chelsea site),Boots Uk Ltd,1170638,"1,422,599.28"
Department of Health,Chelsea & Westminster NHS Foundation Trust,27/03/2018,ITU Equipment,Chelsea Site,Philips Healthcare,1180208,"988,963.36"
Department of Health,Chelsea & Westminster NHS Foundation Trust,27/03/2018,Clinical Equipment,Trust Wide,Ge Medical Systems Ltd (Ge Healthcare),1180560,"510,136.30"
Department of Health,Chelsea & Westminster NHS Foundation Trust,06/03/2018,M.S.S.E. - Routine Purchases,Radiology,Nhs Supply Chain,1169577,"496,931.52"
Department of Health,Chelsea & Westminster NHS Foundation Trust,13/03/2018,It Shared Service,I.C.T,Sphere Systems Powering Healthcare Ltd,1174458,"460,353.06"
Department of Health,Chelsea & Westminster NHS Foundation Trust,26/03/2018,Agency Nurse - Band 5,Central Nursing Agency,Care Providers Recruitment Ltd,1174515,"439,888.32"
Department of Health,Chelsea & Westminster NHS Foundation Trust,26/03/2018,Fire Alarm Replacement,Chelsea Site,Jca Engineering Limited,1177775,"414,960.00"
Department of Health,Chelsea & Westminster NHS Foundation Trust,26/03/2018,Agency Nurse - Band 5,Central Nursing Agency,Care Providers Recruitment Ltd,1171737,"397,380.14"
Department of Health,Chelsea & Westminster NHS Foundation Trust,26/03/2018,Agency Nurse - Band 5,Central Nursing Agency,Care Providers Recruitment Ltd,1178172,"384,023.06"
Department of Health,Chelsea & Westminster NHS Foundation Trust,27/03/2018,Agency Nurse - Band 5,Central Nursing Agency,Care Providers Recruitment Ltd,1177541,"373,404.08"
Department of Health,Chelsea & Westminster NHS Foundation Trust,20/03/2018,Agency Nurse - Band 5,Central Nursing Agency,Care Providers Recruitment Ltd,1168596,"355,157.48"
Department of Health,Chelsea & Westminster NHS Foundation Trust,06/03/2018,Agency Nurse - Band 5,Central Nursing Agency,Care Providers Recruitment Ltd,1165670,"319,170.05"
Department of Health,Chelsea & Westminster NHS Foundation Trust,22/03/2018,Rent Rates & Service Charge,Trust Wide,Cbre Managed Services Limited,1168588,"300,019.27"
Department of Health,Chelsea & Westminster NHS Foundation Trust,22/03/2018,Drugs - H.I.V.,Hiv - Herts,West Hertfordshire Hospitals Nhs Trust,1175448,"241,476.07"
Department of Health,Chelsea & Westminster NHS Foundation Trust,08/03/2018,Drugs - H.I.V.,Hiv - Herts,West Hertfordshire Hospitals Nhs Trust,1161719,"214,846.57"
Department of Health,Chelsea & Westminster NHS Foundation Trust,26/03/2018,Recharges � Pay and non-pay costs,Pain,Imperial College London,1041155,"27,216.69"
Department of Health,Chelsea & Westminster NHS Foundation Trust,22/03/2018,Hire Of Beds,Trust Wide,Arjo Uk Ltd,1168971,"27,240.00"
Department of Health,Chelsea & Westminster NHS Foundation Trust,06/03/2018,M.S.S.E. - Routine Purchases,Cardiac Cath Lab,Medtronic Limited,1160966,"175,894.91"
Department of Health,Chelsea & Westminster NHS Foundation Trust,06/03/2018,P.T.S. - Main Contract,Trust Wide,Hats Group Ltd,1166865,"165,664.80"
Department of Health,Chelsea & Westminster NHS Foundation Trust,26/03/2018,M.S.S.E. - Routine Purchases,Cardiac Cath Lab,Medtronic Limited,1175855,"157,278.53"
Department of Health,Chelsea & Westminster NHS Foundation Trust,06/03/2018,Electricty,Trust Wide,Edf Energy 1 Ltd,1159328,"146,894.88"
Department of Health,Chelsea & Westminster NHS Foundation Trust,01/03/2018,Wandwaver Business Support to E-Pay Projects,Finance,Wandwaver Solutions Limited,1168342,"27,360.00"
Department of Health,Chelsea & Westminster NHS Foundation Trust,06/03/2018,Drug Purchases,Pharmacy  (Chelsea site),Nhs Supply Chain,1162136,"135,967.31"
Department of Health,Chelsea & Westminster NHS Foundation Trust,06/03/2018,Clinical Supplies,Divisional Areas,Nhs Supply Chain,1168168,"135,651.45"
Department of Health,Chelsea & Westminster NHS Foundation Trust,08/03/2018,Recharges � Pay and non-pay costs,Clarhc Office Admin,Imperial College London,1172587,"27,589.00"
Department of Health,Chelsea & Westminster NHS Foundation Trust,06/03/2018,Lift Upgrade Bank B/C/D,Chelsea Site,Liftec Lifts Limited,1165379,"133,543.20"
Department of Health,Chelsea & Westminster NHS Foundation Trust,01/03/2018,Clinical Supplies,Divisional Areas,Nhs Supply Chain,1158904,"133,036.36"
Department of Health,Chelsea & Westminster NHS Foundation Trust,31/03/2018,Clinical Equipment,Trust Wide,Ge Medical Systems Ltd (Ge Healthcare),1182014,"130,020.00"
Department of Health,Chelsea & Westminster NHS Foundation Trust,06/03/2018,Clinical Supplies,Divisional Areas,Nhs Supply Chain,1166296,"127,217.46"
Department of Health,Chelsea & Westminster NHS Foundation Trust,13/03/2018,CWH-Win7 Upgrade-Optiplex 7450 AIO 1/03/18 to 28/02/23,Trust Wide,Sphere Systems Powering Healthcare Ltd,1174459,"117,956.84"
Department of Health,Chelsea & Westminster NHS Foundation Trust,26/03/2018,Rent,10 Hammersmith Broadway,Nuclear Liablities Fund Ltd,1170253,"114,769.20"
Department of Health,Chelsea & Westminster NHS Foundation Trust,26/03/2018,Clinical Supplies,Divisional Areas,Nhs Supply Chain,1174251,"114,164.84"
Department of Health,Chelsea & Westminster NHS Foundation Trust,26/03/2018,"Commercial,Finance and Legal Support, Training & Development Jan-18",Finance,Local Partnership Llp,1168930,"27,796.44"
Department of Health,Chelsea & Westminster NHS Foundation Trust,26/03/2018,Recharges � Pay and non-pay costs,Pain,Imperial College London,1092523,"27,859.43"
Department of Health,Chelsea & Westminster NHS Foundation Trust,01/03/2018,Clinical Supplies,Divisional Areas,Nhs Supply Chain,1158902,"105,908.30"
Department of Health,Chelsea & Westminster NHS Foundation Trust,06/03/2018,Clinical Supplies,Divisional Areas,Nhs Supply Chain,1168170,"99,873.17"
Department of Health,Chelsea & Westminster NHS Foundation Trust,31/03/2018,"WIFI CSM,NIBP,COVIDIEN, Braun6000, Plug4",Clinical Engineering,Welch Allyn Uk Ltd,1181082,"98,226.00"
Department of Health,Chelsea & Westminster NHS Foundation Trust,26/03/2018,Clinical Supplies,Divisional Areas,Nhs Supply Chain,1174250,"96,696.54"
Department of Health,Chelsea & Westminster NHS Foundation Trust,31/03/2018,"WIFI CSM,NIBP,COVIDIEN, Braun6000, Plug4",Clinical Engineering,Welch Allyn Uk Ltd,1181083,"96,300.00"
Department of Health,Chelsea & Westminster NHS Foundation Trust,26/03/2018,Rent Rates & Service Charge,Trust Wide,Chelsea Harbour Ltd,1170249,"28,105.20"
Department of Health,Chelsea & Westminster NHS Foundation Trust,26/03/2018,Fees for Service from Oct 17 to Feb 18,Chelsea Site & Fire Alarm Upgrade,Stace Llp,1170254,"28,125.60"
Department of Health,Chelsea & Westminster NHS Foundation Trust,26/03/2018,Rent Rates & Service Charge,Trust Wide,Chelsea Harbour Ltd,1170252,"28,243.50"
Department of Health,Chelsea & Westminster NHS Foundation Trust,22/03/2018,NIC/ICU Enabling Works,Chelsea Site,Jca Engineering Limited,1174294,"92,215.20"
Department of Health,Chelsea & Westminster NHS Foundation Trust,13/03/2018,Drug Purchases,Pharmacy  (Chelsea site),St George'S University Hospitals Nhs Ft,1173434,"86,410.80"
Department of Health,Chelsea & Westminster NHS Foundation Trust,15/03/2018,Drug Purchases,Pharmacy  (Chelsea site),St George'S University Hospitals Nhs Ft,1174880,"86,410.80"
Department of Health,Chelsea & Westminster NHS Foundation Trust,26/03/2018,Pathology Services February 2018,Sexual Health - Sutton,Doctors Laboratory Ltd (The),1174239,"86,132.00"
Department of Health,Chelsea & Westminster NHS Foundation Trust,06/03/2018,Clinical Supplies,Divisional Areas,Nhs Supply Chain,1165367,"83,368.11"
Department of Health,Chelsea & Westminster NHS Foundation Trust,08/03/2018,Recharges � Pay and non-pay costs,Clarhc Office Admin,Imperial College London,1172587,"83,140.30"
Department of Health,Chelsea & Westminster NHS Foundation Trust,06/03/2018,Clinical Supplies,Divisional Areas,Nhs Supply Chain,1162156,"81,164.49"
Department of Health,Chelsea & Westminster NHS Foundation Trust,13/03/2018,20 % Upon Acceptance of Tandem Robot for the Pharmacy,Pharmacy,Becton Dickinson Dispensing Uk Ltd,1174393,"81,090.29"
Department of Health,Chelsea & Westminster NHS Foundation Trust,06/03/2018,Agency Nurse - Band 5,Central Nursing Agency,Care Providers Recruitment Ltd,1165668,"79,952.36"
Department of Health,Chelsea & Westminster NHS Foundation Trust,27/03/2018,CWH-Win7 Upgrade-Optiplex 7450 AIO 1/03/18 to 28/02/23,Trust Wide,Sphere Systems Powering Healthcare Ltd,1180584,"78,637.90"
Department of Health,Chelsea & Westminster NHS Foundation Trust,13/03/2018,190Additional Bed Days & Service Fees Recovery at Home Contract December 17,Medical Outliers,Medihome Ltd,1145004,"77,583.00"
Department of Health,Chelsea & Westminster NHS Foundation Trust,13/03/2018,176 Additional Bed Days & Service Fees Recovery at Home Contract Jan18,Medical Outliers,Medihome Ltd,1158966,"75,973.00"
Department of Health,Chelsea & Westminster NHS Foundation Trust,26/03/2018,Drug Purchases,Pharmacy  (Chelsea site),Gilead Sciences Ltd,1174852,"74,828.88"
Department of Health,Chelsea & Westminster NHS Foundation Trust,06/03/2018,Drug Purchases,Pharmacy  (Westmid site),Roche Products Ltd,1169509,"28,434.66"
Department of Health,Chelsea & Westminster NHS Foundation Trust,22/03/2018,Leases - Buildings,Queen Mary Maternity Unit,Healthcare Hire Msa Limited,1173158,"73,351.16"
Department of Health,Chelsea & Westminster NHS Foundation Trust,26/03/2018,110 Additional Bed Days & Service Fees Recovery at Home Contract Feb18,Medical Outliers,Medihome Ltd,1170597,"68,383.00"
Department of Health,Chelsea & Westminster NHS Foundation Trust,06/03/2018,Postage,Trust Wide,Neopost Ltd,1164598,"67,050.17"
Department of Health,Chelsea & Westminster NHS Foundation Trust,27/03/2018,Computer & I.T. - Other,Information,Dr Foster Ltd,1176148,"65,239.20"
Department of Health,Chelsea & Westminster NHS Foundation Trust,26/03/2018,Rent Rates & Service Charge,Trust Wide,Chelsea Harbour Ltd,1170250,"63,978.30"
Department of Health,Chelsea & Westminster NHS Foundation Trust,06/03/2018,Drug Purchases,Pharmacy  (Chelsea site),Gilead Sciences Ltd,1168766,"61,812.00"
Department of Health,Chelsea & Westminster NHS Foundation Trust,06/03/2018,General Maintenance Contracts,Path Central Purchasing,Beckman Coulter United Kingdom Ltd,1161874,"60,788.23"
Department of Health,Chelsea & Westminster NHS Foundation Trust,26/03/2018,General Maintenance Contracts,Path Central Purchasing,Beckman Coulter United Kingdom Ltd,1174220,"60,788.23"
Department of Health,Chelsea & Westminster NHS Foundation Trust,22/03/2018,Hire Of Beds,Trust Wide,Arjo Uk Ltd,1157651,"60,049.00"
Department of Health,Chelsea & Westminster NHS Foundation Trust,26/03/2018,Nhs Blood Products,Pathology And Blood,Nhs Blood Transplant,1179708,"58,794.58"
Department of Health,Chelsea & Westminster NHS Foundation Trust,06/03/2018,Drug Purchases,Pharmacy  (Chelsea site),Aah Pharmaceuticals Ltd,1169269,"28,656.26"
Department of Health,Chelsea & Westminster NHS Foundation Trust,26/03/2018,Rent Rates & Service Charge,Trust Wide,Chelsea Harbour Ltd,1170248,"54,717.00"
Department of Health,Chelsea & Westminster NHS Foundation Trust,06/03/2018,DDO's and Social Services work-Phase 1,Chelsea Site,Ensigna Construction Ltd,1161023,"52,890.90"
Department of Health,Chelsea & Westminster NHS Foundation Trust,13/03/2018,Drug Purchases,Pharmacy  (Chelsea site),St George'S University Hospitals Nhs Ft,1165934,"28,971.00"
Department of Health,Chelsea & Westminster NHS Foundation Trust,08/03/2018,Drug Purchases,Pharmacy  (Chelsea site),St George'S University Hospitals Nhs Ft,1172676,"28,971.00"
Department of Health,Chelsea & Westminster NHS Foundation Trust,15/03/2018,Fire Doors,Chelsea Site,Phoenix Construction Services Ltd,1175463,"52,440.00"
Department of Health,Chelsea & Westminster NHS Foundation Trust,27/03/2018,Agency Nurse - Band 5,Central Nursing Agency,Care Providers Recruitment Ltd,1177138,"52,436.30"
Department of Health,Chelsea & Westminster NHS Foundation Trust,26/03/2018,Agency Nurse - Band 5,Central Nursing Agency,Care Providers Recruitment Ltd,1174699,"52,268.08"
Department of Health,Chelsea & Westminster NHS Foundation Trust,20/03/2018,Agency Nurse - Band 5,Central Nursing Agency,Care Providers Recruitment Ltd,1168173,"52,185.49"
Department of Health,Chelsea & Westminster NHS Foundation Trust,27/03/2018,Drugs - H.I.V.,Hiv - Herts,Healthcare At Home Limited,1178241,"50,194.80"
Department of Health,Chelsea & Westminster NHS Foundation Trust,06/03/2018,Fees-London Procurement Programme 17-18,Procurement,Guys & St Thomas' Nhs Ft,1151980,"29,483.00"
Department of Health,Chelsea & Westminster NHS Foundation Trust,27/03/2018,Computer Maintenance Contracts,Radiology Department,Agfa  Healthcare Uk Ltd,1173482,"47,439.98"
Department of Health,Chelsea & Westminster NHS Foundation Trust,26/03/2018,Drug Purchases,Pharmacy  (Westmid site),Healthcare At Home Limited,1175462,"47,374.77"
Department of Health,Chelsea & Westminster NHS Foundation Trust,01/03/2018,Archiving,Electronic Document Management,Kainos Evolve Limited,1159342,"29,552.74"
Department of Health,Chelsea & Westminster NHS Foundation Trust,13/03/2018,Cost of Supporting National IV Medicine Guide,Projects,Imperial College Healthcare Nhs Trust,1168608,"30,000.00"
Department of Health,Chelsea & Westminster NHS Foundation Trust,01/03/2018,Drug Purchases,Pharmacy  (Chelsea site),Gilead Sciences Ltd,1163161,"46,260.00"
Department of Health,Chelsea & Westminster NHS Foundation Trust,01/03/2018,Consultant,Respiratory - Management,Ministry Of Defence (Mod),1153287,"46,250.00"
Department of Health,Chelsea & Westminster NHS Foundation Trust,13/03/2018,M.S.S.E. - Maintenance,Ultrasound Department,Nhs Logistics Authority Maintenance,1169594,"30,302.88"
Department of Health,Chelsea & Westminster NHS Foundation Trust,13/03/2018,General Maintenance Contracts,Radiology,Nhs Logistics Authority Maintenance,1169593,"30,498.00"
Department of Health,Chelsea & Westminster NHS Foundation Trust,06/03/2018,Advertising - Nursing,Director Of Nursing,Medox Paramedical Ltd T/ S  Drake Medox,1162168,"45,476.20"
Department of Health,Chelsea & Westminster NHS Foundation Trust,27/03/2018,Typing&Transcription Services,Opd Admin Musculo Skeletal,Dscribe Ltd,1161048,"45,445.26"
Department of Health,Chelsea & Westminster NHS Foundation Trust,01/03/2018,Archiving,Electronic Document Management,Kainos Evolve Limited,1163246,"44,367.17"
Department of Health,Chelsea & Westminster NHS Foundation Trust,26/03/2018,Agency Nurse - Band 5,Central Nursing Agency,Care Providers Recruitment Ltd,1170751,"44,083.46"
Department of Health,Chelsea & Westminster NHS Foundation Trust,22/03/2018,Advertising - Nursing,Director Of Nursing,Medox Paramedical Ltd T/ S  Drake Medox,1167348,"43,860.80"
Department of Health,Chelsea & Westminster NHS Foundation Trust,26/03/2018,General Computer Software,Urgent Care Centre,Lcw Ucc,1174259,"43,541.40"
Department of Health,Chelsea & Westminster NHS Foundation Trust,20/03/2018,Drug Purchases,Pharmacy  (Westmid site),Healthcare At Home Limited,1175461,"43,506.66"
Department of Health,Chelsea & Westminster NHS Foundation Trust,22/03/2018,Hire Of Beds,Trust Wide,Arjo Uk Ltd,1157637,"41,085.00"
Department of Health,Chelsea & Westminster NHS Foundation Trust,26/03/2018,Rent Rates & Service Charge,Trust Wide,Chelsea Harbour Ltd,1170251,"41,054.40"
Department of Health,Chelsea & Westminster NHS Foundation Trust,08/03/2018,Recharges � Pay and non-pay costs,Public Health & Inf Intelligenge,Imperial College London,1172587,"40,632.46"
Department of Health,Chelsea & Westminster NHS Foundation Trust,27/03/2018,Video Uretoro-Renoscope Flex-X C Image1,Chelsea Site,Karl Storz Endoscopy (Uk) Ltd,1175478,"40,584.60"
Department of Health,Chelsea & Westminster NHS Foundation Trust,15/03/2018,Service Charge - Core Pfi,Pfi Unitary Payment,Bywest Ltd,1174453,"39,951.47"
Department of Health,Chelsea & Westminster NHS Foundation Trust,22/03/2018,Water,Trust Wide,Castle Water Ltd,1149935,"39,815.57"
Department of Health,Chelsea & Westminster NHS Foundation Trust,22/03/2018,Water,Trust Wide,Castle Water Ltd,1120549,"39,815.55"
Department of Health,Chelsea & Westminster NHS Foundation Trust,26/03/2018,Sterile Services Contract,Sterile Services Department,Ihss Limited,1175091,"39,329.16"
Department of Health,Chelsea & Westminster NHS Foundation Trust,13/03/2018,Drug Purchases,Pharmacy  (Chelsea site),Nhs Business Services Authority,1164578,"38,992.40"
Department of Health,Chelsea & Westminster NHS Foundation Trust,15/03/2018,Service Charge - Core Pfi,Pfi Unitary Payment,Bywest Ltd,1174437,"38,546.63"
Department of Health,Chelsea & Westminster NHS Foundation Trust,22/03/2018,Water,Trust Wide,Castle Water Ltd,1138944,"38,531.33"
Department of Health,Chelsea & Westminster NHS Foundation Trust,06/03/2018,Water,Trust Wide,Castle Water Ltd,1163373,"38,515.91"
Department of Health,Chelsea & Westminster NHS Foundation Trust,26/03/2018,Quantity Surveying and Contract Administration Services Fees,Chelsea Site & Door Replacement Scheme,Stace Llp,1170255,"38,400.00"
Department of Health,Chelsea & Westminster NHS Foundation Trust,08/03/2018,M.S.S.E. - Routine Purchases,Clinical Engineering,Nhs Supply Chain,1143437,"37,162.29"
Department of Health,Chelsea & Westminster NHS Foundation Trust,15/03/2018,Drug Purchases,Pharmacy  (Chelsea site),St George'S University Hospitals Nhs Ft,1174879,"37,033.20"
Department of Health,Chelsea & Westminster NHS Foundation Trust,22/03/2018,Drug Purchases,Pharmacy  (Chelsea site),St George'S University Hospitals Nhs Ft,1178016,"37,033.20"
Department of Health,Chelsea & Westminster NHS Foundation Trust,26/03/2018,Drug Purchases,Pharmacy Outpatients,Boots Uk Ltd,1170643,"36,506.14"
Department of Health,Chelsea & Westminster NHS Foundation Trust,26/03/2018,Valuation Nr17 in Respect of Door Replacement and Refurbishment Work as per Stace LLP Interim Certificate ref2017/0359/MF Dated 14/03/2018,Chelsea Site,Phoenix Construction Services Ltd,1175214,"36,480.00"
Department of Health,Chelsea & Westminster NHS Foundation Trust,22/03/2018,Computer Maintenance Contracts,Information Technology Department,Ascribe Ltd T/A Emis Health,1166803,"36,000.00"
Department of Health,Chelsea & Westminster NHS Foundation Trust,20/03/2018,Joint Therapies Consortium,Therapies Sla Contract,Hounslow & Richmond Community Healthcare,1170564,"35,857.91"
Department of Health,Chelsea & Westminster NHS Foundation Trust,15/03/2018,HR Process Mapping,Finance,Pa Consulting Services Ltd,1164366,"35,040.00"
Department of Health,Chelsea & Westminster NHS Foundation Trust,01/03/2018,Photocopying Services,Information Technology Department,Hp Inc. Uk Limited,1160533,"34,796.70"
Department of Health,Chelsea & Westminster NHS Foundation Trust,27/03/2018,Water,Trust Wide,Castle Water Ltd,1176599,"34,788.53"
Department of Health,Chelsea & Westminster NHS Foundation Trust,13/03/2018,Pathology Test,Sexual Health - Sutton,Epsom And St Helier University Hosp Nhs Trust,1166852,"34,471.62"
Department of Health,Chelsea & Westminster NHS Foundation Trust,15/03/2018,Joint Therapies Consortium,Therapies Sla Contract,Hounslow & Richmond Community Healthcare,1145007,"34,281.74"
Department of Health,Chelsea & Westminster NHS Foundation Trust,06/03/2018,Drug Purchases,Pharmacy  (Westmid site),Csl Behring Uk Ltd,1165313,"34,125.00"
Department of Health,Chelsea & Westminster NHS Foundation Trust,27/03/2018,Drug Purchases,Pharmacy  (Westmid site),Novartis Pharmaceuticals Uk Limited,1176250,"34,118.75"
Department of Health,Chelsea & Westminster NHS Foundation Trust,06/03/2018,Dayhawk Consultation & Dawhawk CT Exam,Radiology,Medica Reporting Ltd (Medica Group),1167354,"34,046.25"
Department of Health,Chelsea & Westminster NHS Foundation Trust,15/03/2018,Joint Therapies Consortium,Therapies Sla Contract,Hounslow & Richmond Community Healthcare,1157071,"33,562.58"
Department of Health,Chelsea & Westminster NHS Foundation Trust,27/03/2018,Appliances ,Surgical Appliances Department,Trulife Limited,1170609,"33,402.17"
Department of Health,Chelsea & Westminster NHS Foundation Trust,06/03/2018,Dayhawk Consultation & Dawhawk CT Exam,Radiology,Medica Reporting Ltd (Medica Group),1163440,"33,103.18"
Department of Health,Chelsea & Westminster NHS Foundation Trust,06/03/2018,Office Equip. - Hire,I.CT,Xerox Uk Ltd,1157394,"32,840.65"
Department of Health,Chelsea & Westminster NHS Foundation Trust,15/03/2018,Joint Therapies Consortium,Therapies Sla Contract,Hounslow & Richmond Community Healthcare,1133091,"32,745.68"
Department of Health,Chelsea & Westminster NHS Foundation Trust,22/03/2018,Hire Of Beds,Trust Wide,Arjo Uk Ltd,1157650,"32,370.00"
Department of Health,Chelsea & Westminster NHS Foundation Trust,06/03/2018,Service Charge - Core Pfi,Estate Management Department,Iss Mediclean Limited,1169657,"32,150.57"
Department of Health,Chelsea & Westminster NHS Foundation Trust,26/03/2018,Dayhawk Consultation & Dawhawk CT Exam,Radiology,Medica Reporting Ltd (Medica Group),1175095,"32,105.90"
Department of Health,Chelsea & Westminster NHS Foundation Trust,08/03/2018,Photocopying Services,Information Technology Department,Hp Inc. Uk Limited,1171787,"31,961.54"
Department of Health,Chelsea & Westminster NHS Foundation Trust,06/03/2018,Consultancy Services,EPR Cross Site Project,Ideal Health Consultants Limited,1150581,"31,550.40"
Department of Health,Chelsea & Westminster NHS Foundation Trust,26/03/2018,Drug Purchases,Pharmacy  (Chelsea site),Csl Behring Uk Ltd,1175748,"31,281.25"
Department of Health,Chelsea & Westminster NHS Foundation Trust,06/03/2018,Appliances,Surgical Appliances Department,Trulife Limited,1160142,"31,111.46"
Department of Health,Chelsea & Westminster NHS Foundation Trust,15/03/2018,Recruitment Expenses,EPR Cross Site Project,Hunter Healthcare Resourcing Ltd,1168587,"31,110.00"
Department of Health,Chelsea & Westminster NHS Foundation Trust,26/03/2018,Agency Nurse - Band 5,Central Nursing Agency,Care Providers Recruitment Ltd,1174516,"30,961.34"
Department of Health,Chelsea & Westminster NHS Foundation Trust,22/03/2018,Hire Of Beds,Trust Wide,Arjo Uk Ltd,1157652,"-72,058.80"
Department of Health,Chelsea & Westminster NHS Foundation Trust,22/03/2018,Hire Of Beds,Trust Wide,Arjo Uk Ltd,1157649,"-38,844.00"
,,,,,,Total,"17,864,152.05"
